bitfinex/quotes_BTCUSD_20240731
["timestamp","ask_amount","ask_price","bid_price","bid_amount"]
[1722414536275,1.38702996,66415.0,66414.0,0.000913]
[1722414536450,1.38702996,66415.0,66414.0,0.003913]
[1722414537330,1.39702996,66415.0,66414.0,0.003913]
[1722414537549,1.24633564,66415.0,66414.0,0.005913]
[1722414537961,1.24633564,66415.0,66414.0,0.003913]
[1722414538164,1.24633564,66415.0,66414.0,0.007913]
[1722414538368,1.21543904,66415.0,66414.0,0.007913]
[1722414538564,1.2466288,66415.0,66414.0,0.007913]
[1722414539184,1.2466288,66415.0,66414.0,0.004913]
[1722414539366,1.2476288,66415.0,66414.0,0.004913]
[1722414540043,1.24646156,66415.0,66414.0,0.004913]
[1722414540470,1.24646156,66415.0,66414.0,0.007913]
[1722414541454,1.46265588,66415.0,66414.0,0.007913]
[1722414541655,1.52905719,66415.0,66414.0,0.007913]
[1722414542043,1.52900583,66415.0,66414.0,0.007913]
[1722414542327,1.61170583,66415.0,66414.0,0.007913]
[1722414542559,1.95584183,66415.0,66414.0,0.000913]
[1722414543061,1.95984183,66415.0,66414.0,0.000913]
[1722414543382,2.05984183,66415.0,66414.0,0.000913]
[1722414543531,2.05684183,66415.0,66414.0,0.000913]
[1722414543760,2.06184183,66415.0,66414.0,0.000913]
[1722414544360,2.04084183,66415.0,66414.0,0.000913]
[1722414544567,2.06084183,66415.0,66414.0,0.000913]
[1722414544762,2.04484183,66415.0,66414.0,0.000913]
[1722414545073,2.05584183,66415.0,66414.0,0.000913]
[1722414545282,1.95846936,66415.0,66414.0,0.000913]
[1722414545446,2.04537957,66415.0,66414.0,0.000913]
[1722414547033,2.06537957,66415.0,66414.0,0.000913]
[1722414547237,2.15177957,66415.0,66414.0,0.000913]
[1722414548711,2.05386936,66415.0,66414.0,0.000913]
[1722414548843,2.15165681,66415.0,66414.0,0.000913]
[1722414549442,2.13165681,66415.0,66414.0,0.000913]
[1722414549644,2.31055681,66415.0,66414.0,0.000913]
[1722414551959,2.21276936,66415.0,66414.0,0.000913]
[1722414552161,2.30992752,66415.0,66414.0,0.000913]
[1722414554434,2.3097463,66415.0,66414.0,0.000913]
[1722414555044,2.83287817,66415.0,66414.0,0.000913]
[1722414555272,2.6108823,66415.0,66414.0,0.000913]
[1722414555480,2.51372414,66415.0,66414.0,0.000913]
[1722414555685,2.61151095,66415.0,66414.0,0.000913]
[1722414556057,2.60651095,66415.0,66414.0,0.000913]
[1722414556219,2.61651095,66415.0,66414.0,0.001913]
[1722414557108,2.16468063,66415.0,66414.0,0.001913]
[1722414557309,2.38666101,66415.0,66414.0,0.001913]
[1722414557716,2.17868063,66415.0,66414.0,0.002913]
[1722414558122,2.16468063,66415.0,66414.0,0.001913]
[1722414558323,2.17768063,66415.0,66414.0,0.002913]
[1722414558525,2.16368063,66415.0,66414.0,0.001913]
[1722414558887,2.15723658,66415.0,66414.0,0.001913]
[1722414559080,2.3079309,66415.0,66414.0,0.001913]
[1722414559271,2.2939309,66415.0,66414.0,0.001913]
[1722414559469,2.51590627,66415.0,66414.0,0.001913]
[1722414559630,2.45320627,66415.0,66414.0,0.001913]
[1722414559834,2.46620627,66415.0,66414.0,0.001913]
[1722414560033,2.2242309,66415.0,66414.0,0.001913]
[1722414560230,2.1587309,66415.0,66414.0,0.001913]
[1722414561000,2.00803658,66415.0,66414.0,0.001913]
[1722414561211,1.54800058,66415.0,66414.0,0.001913]
[1722414561427,1.54800058,66415.0,66414.0,0.145313]
[1722414561806,1.54800058,66415.0,66414.0,0.081313]
[1722414562009,1.45065782,66415.0,66414.0,0.081313]
[1722414562184,1.6992161,66415.0,66414.0,0.081313]
[1722414562384,1.54852178,66415.0,66414.0,0.081313]
[1722414564049,1.56852178,66415.0,66414.0,0.081313]
[1722414564256,1.54852178,66415.0,66414.0,0.081313]
[1722414564806,1.55852178,66415.0,66414.0,0.081313]
[1722414565007,1.54852178,66415.0,66414.0,0.081313]
[1722414565648,1.54853403,66415.0,66414.0,0.081313]
[1722414565837,1.56853403,66415.0,66414.0,0.081313]
[1722414566210,1.54853403,66415.0,66414.0,0.081313]
[1722414566387,1.56853403,66415.0,66414.0,0.081313]
[1722414566951,1.65102218,66415.0,66414.0,0.081313]
[1722414567710,1.65102218,66415.0,66414.0,0.001913]
[1722414567938,2.08885818,66415.0,66414.0,0.001913]
[1722414569196,2.24399991,66415.0,66414.0,0.001913]
[1722414569385,2.31046333,66415.0,66414.0,0.001913]
[1722414570407,2.08846778,66415.0,66414.0,0.001913]
[1722414570987,2.54850378,66415.0,66414.0,0.001913]
[1722414571453,2.54846922,66415.0,66414.0,0.001913]
[1722414572528,2.54835157,66415.0,66414.0,0.001913]
[1722414574751,2.22721557,66415.0,66414.0,0.000913]
[1722414575128,2.24721557,66415.0,66414.0,0.000913]
[1722414575521,2.23721557,66415.0,66414.0,0.000913]
[1722414575695,2.22721557,66415.0,66414.0,0.000913]
[1722414576733,2.15121557,66415.0,66414.0,0.000913]
[1722414578113,2.17121557,66415.0,66414.0,0.000913]
[1722414578326,2.17121557,66415.0,66414.0,0.001826]
[1722414579302,2.00411557,66415.0,66414.0,0.001826]
[1722414579500,2.04430553,66415.0,66414.0,0.001826]
[1722414579816,2.11086307,66415.0,66414.0,0.001826]
[1722414580433,2.09086307,66415.0,66414.0,0.001826]
[1722414582871,2.09116012,66415.0,66414.0,0.001826]
[1722414584591,2.00476012,66415.0,66414.0,0.001826]
[1722414584955,2.09116012,66415.0,66414.0,0.001826]
[1722414585596,2.09116012,66415.0,66414.0,0.0033802]
[1722414586223,2.09135062,66415.0,66414.0,0.0033802]
[1722414586423,2.09135062,66415.0,66414.0,0.001826]
[1722414586662,1.93245062,66415.0,66414.0,0.001826]
[1722414588059,1.93245062,66415.0,66414.0,0.00286617]
[1722414588271,1.93245062,66415.0,66414.0,0.001826]
[1722414588466,1.93245062,66415.0,66414.0,0.00293751]
[1722414588667,1.93245062,66415.0,66414.0,0.001826]
[1722414589449,1.93245062,66415.0,66414.0,0.00277607]
[1722414589660,1.93237199,66415.0,66414.0,0.00277607]
[1722414591753,1.93237199,66415.0,66414.0,0.001826]
[1722414593009,1.83428197,66415.0,66414.0,0.001826]
[1722414593213,1.93240359,66415.0,66414.0,0.001826]
[1722414595986,1.95240359,66415.0,66414.0,0.001826]
[1722414596625,1.95230198,66415.0,66414.0,0.001826]
[1722414597042,1.95229339,66415.0,66414.0,0.001826]
[1722414598210,2.01869339,66415.0,66414.0,0.001826]
[1722414600273,2.01869196,66415.0,66414.0,0.001826]
[1722414601294,2.26029196,66415.0,66414.0,0.001826]
[1722414602521,2.15759196,66415.0,66414.0,0.001826]
[1722414603071,2.09119196,66415.0,66414.0,0.001826]
[1722414603272,1.76340381,66415.0,66414.0,0.001826]
[1722414603471,1.75179382,66415.0,66414.0,0.001826]
[1722414603695,1.84943443,66415.0,66414.0,0.001826]
[1722414606960,1.75179382,66415.0,66414.0,0.001826]
[1722414607166,1.85038603,66415.0,66414.0,0.001826]
[1722414607979,1.85038603,66415.0,66414.0,0.063126]
[1722414608592,1.85038603,66415.0,66414.0,0.001826]
[1722414608791,1.87038603,66415.0,66414.0,0.001826]
[1722414610201,1.93438603,66415.0,66414.0,0.001826]
[1722414610407,1.93190922,66415.0,66414.0,0.001826]
[1722414610614,2.08260354,66415.0,66414.0,0.001826]
[1722414611223,1.91220354,66415.0,66414.0,0.001826]
[1722414611432,1.99860354,66415.0,66414.0,0.001826]
[1722414612148,1.99860354,66415.0,66414.0,0.081526]
[1722414612149,1.53677322,66415.0,66414.0,0.081526]
[1722414612361,1.53677322,66415.0,66414.0,0.144526]
[1722414612362,0.42396522,66415.0,66414.0,0.144526]
[1722414612575,0.65930702,66415.0,66414.0,0.144526]
[1722414613201,0.34517102,66415.0,66414.0,0.144526]
[1722414613415,0.33217102,66415.0,66414.0,0.143613]
[1722414613598,0.65088214,66415.0,66414.0,0.145613]
[1722414613847,0.95201814,66415.0,66414.0,0.145613]
[1722414615702,0.95195385,66415.0,66414.0,0.145613]
[1722414616844,0.19911385,66415.0,66414.0,0.145613]
[1722414617255,0.34992495,66415.0,66414.0,0.145613]
[1722414617437,0.65106095,66415.0,66414.0,0.145613]
[1722414617638,0.95219695,66415.0,66414.0,0.145613]
[1722414617832,0.65106095,66415.0,66414.0,0.145613]
[1722414618039,0.633399,66415.0,66414.0,0.145613]
[1722414618428,0.625399,66415.0,66414.0,0.144613]
[1722414618638,0.616399,66415.0,66414.0,0.143613]
[1722414618838,0.633399,66415.0,66414.0,0.145613]
[1722414619504,0.624399,66415.0,66414.0,0.144613]
[1722414619811,0.167695,66415.0,66414.0,0.143613]
[1722414619997,0.319263,66415.0,66414.0,0.143613]
[1722414620207,0.316263,66415.0,66414.0,0.143613]
[1722414620423,0.315263,66415.0,66414.0,0.143613]
[1722414620626,0.31722893,66415.0,66414.0,0.143613]
[1722414621036,0.32386093,66415.0,66414.0,0.143613]
[1722414622580,0.62499693,66415.0,66414.0,0.143613]
[1722414622782,0.17329293,66415.0,66414.0,0.143613]
[1722414622997,0.32386093,66415.0,66414.0,0.143613]
[1722414623837,0.32395576,66415.0,66414.0,0.143613]
[1722414624689,0.17338776,66415.0,66414.0,0.143613]
[1722414624913,0.008632,66415.0,66414.0,0.5968782]
[1722414625113,0.008632,66415.0,66414.0,0.896465]
[1722414625332,0.002,66415.0,66414.0,0.896465]
[1722414625536,0.00083,66417.0,66416.0,0.451698]
[1722414625747,0.00083,66417.0,66416.0,0.89853]
[1722414625950,0.00746347,66417.0,66416.0,1.199662]
[1722414626375,0.0685147,66417.0,66416.0,1.199662]
[1722414626550,0.00083,66417.0,66416.0,1.199662]
[1722414627503,0.00183,66417.0,66416.0,1.213662]
[1722414627708,0.00183,66417.0,66416.0,0.1597]
[1722414627928,0.00183,66417.0,66416.0,0.310266]
[1722414628134,0.12129624,66417.0,66416.0,0.310266]
[1722414628556,0.00853964,66417.0,66416.0,0.611398]
[1722414628801,0.09868605,66417.0,66416.0,0.91253]
[1722414629000,0.00853964,66417.0,66416.0,0.91253]
[1722414629209,0.07714937,66417.0,66416.0,0.92053]
[1722414629408,0.00953964,66417.0,66416.0,1.00693]
[1722414629633,0.054601,66417.0,66416.0,1.308062]
[1722414629833,0.00852636,66417.0,66416.0,1.294062]
[1722414630033,0.00852636,66417.0,66416.0,1.305062]
[1722414630034,0.00183,66417.0,66416.0,1.305062]
[1722414630251,0.00952636,66417.0,66416.0,1.305062]
[1722414630454,0.00083,66417.0,66416.0,1.286062]
[1722414630696,0.00083,66417.0,66416.0,1.294062]
[1722414630697,0.00183,66417.0,66416.0,1.294062]
[1722414630922,0.00283,66417.0,66416.0,1.308062]
[1722414631883,0.00183,66417.0,66416.0,0.99893]
[1722414632286,0.00283,66417.0,66416.0,0.705798]
[1722414632507,0.00952315,66417.0,66416.0,0.619398]
[1722414632889,0.05458198,66417.0,66416.0,0.92053]
[1722414633088,0.0771114,66417.0,66416.0,0.1677]
[1722414633431,0.0771114,66417.0,66416.0,0.619398]
[1722414633629,0.07707217,66417.0,66416.0,0.619398]
[1722414634175,0.07607217,66417.0,66416.0,0.605398]
[1722414634568,0.07707217,66417.0,66416.0,0.618398]
[1722414635006,0.07707217,66417.0,66416.0,0.317266]
[1722414635191,0.07607217,66417.0,66416.0,0.309266]
[1722414635612,0.07707217,66417.0,66416.0,0.250366]
[1722414635815,0.37826821,66417.0,66416.0,0.0998]
[1722414636017,0.37826821,66417.0,66416.0,0.007]
[1722414636018,0.42227271,66417.0,66416.0,0.007]
[1722414636222,0.451704,66415.0,66414.0,0.000913]
[1722414636428,0.90347304,66415.0,66414.0,0.0024672]
[1722414636628,0.90378945,66415.0,66414.0,0.0024672]
[1722414636976,0.90378945,66415.0,66414.0,0.000913]
[1722414637492,0.60265345,66415.0,66414.0,0.000913]
[1722414637741,0.60365345,66415.0,66414.0,0.012913]
[1722414638318,0.60365345,66415.0,66414.0,0.0144672]
[1722414638494,0.90578945,66415.0,66414.0,0.018913]
[1722414638839,0.60465345,66415.0,66414.0,0.018913]
[1722414639072,0.60365345,66415.0,66414.0,0.012913]
[1722414639263,0.60365345,66415.0,66414.0,0.0144672]
[1722414639468,0.60465345,66415.0,66414.0,0.018913]
[1722414639995,0.90578945,66415.0,66414.0,0.018913]
[1722414640192,1.29332545,66415.0,66414.0,0.018913]
[1722414640491,1.32399477,66415.0,66414.0,0.018913]
[1722414640722,1.32367836,66415.0,66414.0,0.018913]
[1722414641171,1.02254236,66415.0,66414.0,0.018913]
[1722414641408,0.93614236,66415.0,66414.0,0.018913]
[1722414642468,0.93697236,66415.0,66414.0,0.018913]
[1722414643691,0.93671837,66415.0,66414.0,0.018913]
[1722414645304,1.32425437,66415.0,66414.0,0.018913]
[1722414645513,1.52537908,66415.0,66414.0,0.018913]
[1722414645728,1.6760734,66415.0,66414.0,0.018913]
[1722414645932,1.54094869,66415.0,66414.0,0.018913]
[1722414646545,1.69096399,66415.0,66414.0,0.000913]
[1722414646743,1.53894869,66415.0,66414.0,0.000913]
[1722414646951,1.69023744,66415.0,66414.0,0.000913]
[1722414647585,1.54018808,66415.0,66414.0,0.000913]
[1722414647985,1.54418808,66415.0,66414.0,0.000913]
[1722414648328,1.54018808,66415.0,66414.0,0.000913]
[1722414648758,1.54418808,66415.0,66414.0,0.000913]
[1722414648979,1.54218808,66415.0,66414.0,0.000913]
[1722414649194,1.32549376,66415.0,66414.0,0.000913]
[1722414649401,1.24109376,66415.0,66414.0,0.000913]
[1722414650374,1.21143904,66415.0,66414.0,0.000913]
[1722414650551,1.24179103,66415.0,66414.0,0.000913]
[1722414651880,1.32819103,66415.0,66414.0,0.000913]
[1722414652769,1.47888535,66415.0,66414.0,0.000913]
[1722414652968,1.55918535,66415.0,66414.0,0.000913]
[1722414653543,1.52883336,66415.0,66414.0,0.000913]
[1722414653744,1.55890209,66415.0,66414.0,0.000913]
[1722414654560,1.63190209,66415.0,66414.0,0.000913]
[1722414655125,1.93303809,66415.0,66414.0,0.000913]
[1722414655343,1.54550209,66415.0,66414.0,0.000913]
[1722414657075,1.5455704,66415.0,66414.0,0.000913]
[1722414657779,1.8467064,66415.0,66414.0,0.000913]
[1722414658333,1.5455704,66415.0,66414.0,0.000913]
[1722414659148,1.5456017,66415.0,66414.0,0.000913]
[1722414660373,1.53543336,66415.0,66414.0,0.000913]
[1722414660568,1.56559591,66415.0,66414.0,0.000913]
[1722414660752,1.56559415,66415.0,66414.0,0.000913]
[1722414660957,1.86673015,66415.0,66414.0,0.000913]
[1722414661165,1.56559415,66415.0,66414.0,0.000913]
[1722414661561,1.86673015,66415.0,66414.0,0.000913]
[1722414661825,1.56559415,66415.0,66414.0,0.000913]
[1722414662046,1.41489983,66415.0,66414.0,0.000913]
[1722414662242,1.71603583,66415.0,66414.0,0.000913]
[1722414662695,1.88181916,66415.0,66414.0,0.000913]
[1722414663113,1.90481916,66415.0,66414.0,0.000913]
[1722414663317,2.05551348,66415.0,66414.0,0.000913]
[1722414663731,2.57862337,66415.0,66414.0,0.000913]
[1722414663939,2.26070536,66415.0,66414.0,0.000913]
[1722414664143,2.57462672,66415.0,66414.0,0.000913]
[1722414664348,2.27149072,66415.0,66414.0,0.000913]
[1722414664548,2.28149072,66415.0,66414.0,0.001913]
[1722414664761,2.29049072,66415.0,66414.0,0.002913]
[1722414665313,2.06859901,66415.0,66414.0,0.002913]
[1722414665514,2.36973501,66415.0,66414.0,0.002913]
[1722414665660,2.06859901,66415.0,66414.0,0.002913]
[1722414666501,2.36973501,66415.0,66414.0,0.002913]
[1722414667364,2.27370536,66415.0,66414.0,0.002913]
[1722414667594,2.36931486,66415.0,66414.0,0.002913]
[1722414668980,2.52821486,66415.0,66414.0,0.002913]
[1722414669791,2.52821486,66415.0,66414.0,0.280613]
[1722414670636,2.43260536,66415.0,66414.0,0.280613]
[1722414670849,2.52764322,66415.0,66414.0,0.280613]
[1722414672167,2.74932459,66415.0,66414.0,0.280613]
[1722414672478,2.52764322,66415.0,66414.0,0.280613]
[1722414673769,2.52764322,66415.0,66414.0,0.14006651]
[1722414674015,2.52724705,66415.0,66414.0,0.11742215]
[1722414674235,2.52724705,66415.0,66414.0,0.10231063]
[1722414674445,2.52724705,66415.0,66414.0,0.10322363]
[1722414675298,2.61364705,66415.0,66414.0,0.10322363]
[1722414675704,2.61411495,66415.0,66414.0,0.10322363]
[1722414677356,2.54873875,66415.0,66414.0,0.10322363]
[1722414677563,2.61395681,66415.0,66414.0,0.10322363]
[1722414677978,2.07362081,66415.0,66414.0,0.10322363]
[1722414678181,2.06362081,66415.0,66414.0,0.10322363]
[1722414678435,2.03062081,66415.0,66414.0,0.10322363]
[1722414678776,2.03062081,66415.0,66414.0,0.17962363]
[1722414678777,1.25417243,66415.0,66414.0,0.17962363]
[1722414679443,0.65190043,66415.0,66414.0,0.24362363]
[1722414680112,0.95303643,66415.0,66414.0,0.24362363]
[1722414680530,0.01083,66415.0,66414.0,0.24362363]
[1722414680747,0.01083,66415.0,66414.0,0.78974566]
[1722414680748,0.11348049,66415.0,66414.0,0.78974566]
[1722414680925,0.00183,66415.0,66414.0,0.48559363]
[1722414681238,0.00183,66415.0,66414.0,0.70133463]
[1722414681449,0.04688813,66415.0,66414.0,0.40019363]
[1722414681670,0.04688813,66415.0,66414.0,0.24962363]
[1722414681671,0.069417,66415.0,66414.0,0.24962363]
[1722414681844,0.00183,66415.0,66414.0,0.24962363]
[1722414682183,0.09195451,66415.0,66414.0,0.24962363]
[1722414682387,0.24252251,66415.0,66414.0,0.24962363]
[1722414682613,0.00183,66415.0,66414.0,0.24962363]
[1722414683211,0.23920935,66415.0,66414.0,0.24962363]
[1722414683460,0.65299584,66415.0,66414.0,0.24962363]
[1722414683672,0.54034535,66415.0,66414.0,0.24962363]
[1722414683879,1.02166938,66415.0,66414.0,0.24962363]
[1722414684021,1.32280538,66415.0,66414.0,0.24962363]
[1722414684946,1.32280538,66415.0,66414.0,0.18562363]
[1722414685551,1.23599403,66415.0,66414.0,0.18562363]
[1722414690385,1.23635923,66415.0,66414.0,0.18562363]
[1722414691228,0.93522323,66415.0,66414.0,0.18562363]
[1722414692614,1.23635923,66415.0,66414.0,0.18562363]
[1722414692820,1.23635923,66415.0,66414.0,0.10922363]
[1722414693029,1.52831742,66415.0,66414.0,0.10922363]
[1722414693639,1.37620774,66415.0,66414.0,0.10922363]
[1722414697075,1.37732854,66415.0,66414.0,0.10922363]
[1722414697492,1.23748003,66415.0,66414.0,0.10922363]
[1722414697694,0.93634403,66415.0,66414.0,0.10922363]
[1722414698307,0.93634403,66415.0,66414.0,0.25382363]
[1722414700390,0.93615197,66415.0,66414.0,0.25382363]
[1722414702267,0.93609098,66415.0,66414.0,0.25382363]
[1722414702639,0.787151,66415.0,66414.0,0.25382363]
[1722414702878,0.93609098,66415.0,66414.0,0.25382363]
[1722414703899,0.93623237,66415.0,66414.0,0.25382363]
[1722414707244,0.93619118,66415.0,66414.0,0.25382363]
[1722414708223,0.93619118,66415.0,66414.0,0.25282363]
[1722414712618,0.63505518,66415.0,66414.0,0.25282363]
[1722414713885,0.60416704,66415.0,66414.0,0.25282363]
[1722414714063,0.63498075,66415.0,66414.0,0.25282363]
[1722414715030,0.03264371,66415.0,66414.0,0.25282363]
[1722414715436,0.03264371,66415.0,66414.0,0.40339363]
[1722414716264,0.03264371,66415.0,66414.0,1.00567563]
[1722414716470,0.11453541,66415.0,66414.0,1.00567563]
[1722414716667,0.00183,66415.0,66414.0,1.00567563]
[1722414717090,0.00183,66415.0,66414.0,1.00467563]
[1722414717485,0.00183,66415.0,66414.0,1.00167563]
[1722414717693,0.00183,66415.0,66414.0,0.70053463]
[1722414717944,0.11553706,66415.0,66414.0,0.70953463]
[1722414719261,0.00283,66415.0,66414.0,0.70953463]
[1722414719660,0.11555074,66415.0,66414.0,0.70953463]
[1722414720525,0.00283,66415.0,66414.0,0.70953463]
[1722414720764,0.00283,66415.0,66414.0,0.40839363]
[1722414721118,0.00283,66415.0,66414.0,0.70953463]
[1722414722913,0.00283,66415.0,66414.0,0.40839363]
[1722414723260,0.00283,66415.0,66414.0,0.70953463]
[1722414731214,0.00283,66415.0,66414.0,0.40839363]
[1722414731448,0.00283,66415.0,66414.0,0.40994783]
[1722414731693,0.00283,66415.0,66414.0,0.40839363]
[1722414732400,0.00283,66415.0,66414.0,0.40994783]
[1722414732634,0.00283,66415.0,66414.0,0.40839363]
[1722414732861,0.00283,66415.0,66414.0,0.40994783]
[1722414733109,0.00283,66415.0,66414.0,0.40839363]
[1722414734548,0.00283,66415.0,66414.0,0.70953463]
[1722414736973,0.00283,66415.0,66414.0,0.25782363]
[1722414737393,0.00283,66415.0,66414.0,0.40839363]
[1722414737639,0.00283,66415.0,66414.0,0.25782363]
[1722414737885,0.00283,66415.0,66414.0,0.40839363]
[1722414744486,0.03433157,66415.0,66414.0,0.40839363]
[1722414745487,0.03433157,66415.0,66414.0,0.25782363]
[1722414745710,0.03433157,66415.0,66414.0,0.11322363]
[1722414745923,1.01380461,66415.0,66414.0,0.11322363]
[1722414746156,1.22796511,66415.0,66414.0,0.11322363]
[1722414746388,1.37674061,66415.0,66414.0,0.11322363]
[1722414746803,1.37574061,66415.0,66414.0,0.11122363]
[1722414747020,1.07460461,66415.0,66414.0,0.11122363]
[1722414747226,1.07560461,66415.0,66414.0,0.11522363]
[1722414747431,1.07456859,66415.0,66414.0,0.11522363]
[1722414747630,1.07456859,66415.0,66414.0,0.10222363]
[1722414747631,1.07256859,66415.0,66414.0,0.10222363]
[1722414748045,1.07456859,66415.0,66414.0,0.11822363]
[1722414748482,1.07356859,66415.0,66414.0,0.10622363]
[1722414748691,1.07456859,66415.0,66414.0,0.11822363]
[1722414750515,1.04410304,66415.0,66414.0,0.11822363]
[1722414750726,1.07500197,66415.0,66414.0,0.11822363]
[1722414752588,1.37613797,66415.0,66414.0,0.11822363]
[1722414753130,1.37513797,66415.0,66414.0,0.11422363]
[1722414753359,1.37467458,66415.0,66414.0,0.11422363]
[1722414753576,1.52086504,66415.0,66414.0,0.11422363]
[1722414753772,1.5309653,66415.0,66414.0,0.11822363]
[1722414753949,1.59687177,66415.0,66414.0,0.11822363]
[1722414754155,1.59587177,66415.0,66414.0,0.11422363]
[1722414754574,1.59587177,66415.0,66414.0,0.11822363]
[1722414754575,1.45068131,66415.0,66414.0,0.11822363]
[1722414754779,1.44968131,66415.0,66414.0,0.10622363]
[1722414754981,1.38477556,66415.0,66414.0,0.11322363]
[1722414755548,1.38377556,66415.0,66414.0,0.10622363]
[1722414755757,1.38277556,66415.0,66414.0,0.10222363]
[1722414756105,1.38477556,66415.0,66414.0,0.10222363]
[1722414756514,1.38277556,66415.0,66414.0,0.10222363]
[1722414757058,1.38277556,66415.0,66414.0,0.10822363]
[1722414757459,1.38287484,66415.0,66414.0,0.10822363]
[1722414758405,1.38287484,66415.0,66414.0,0.10522363]
[1722414758585,1.38287484,66415.0,66414.0,0.11022363]
[1722414759379,1.38287484,66415.0,66414.0,0.10522363]
[1722414759602,1.38287484,66415.0,66414.0,0.10922363]
[1722414760078,1.38287484,66415.0,66414.0,0.10622363]
[1722414760839,1.38282591,66415.0,66414.0,0.10822363]
[1722414760984,1.38282591,66415.0,66414.0,0.10622363]
[1722414761186,1.38282591,66415.0,66414.0,0.10822363]
[1722414761587,1.30682591,66415.0,66414.0,0.10822363]
[1722414761789,0.70455391,66415.0,66414.0,0.10822363]
[1722414762005,1.00568991,66415.0,66414.0,0.10822363]
[1722414762187,0.34161791,66415.0,66414.0,0.18332363]
[1722414762554,0.64275391,66415.0,66414.0,0.18332363]
[1722414763314,0.04041687,66415.0,66414.0,0.18332363]
[1722414763597,0.03131661,66415.0,66414.0,0.24572363]
[1722414765087,0.18188461,66415.0,66414.0,0.24572363]
[1722414765300,0.03131661,66415.0,66414.0,0.24572363]
[1722414766634,0.48302061,66415.0,66414.0,0.18332363]
[1722414766863,0.54832061,66415.0,66414.0,0.10822363]
[1722414767093,0.84945661,66415.0,66414.0,0.10822363]
[1722414767321,0.84952318,66415.0,66414.0,0.10822363]
[1722414767569,1.21473229,66415.0,66414.0,0.10822363]
[1722414767793,1.15244433,66415.0,66414.0,0.10822363]
[1722414769201,1.45358033,66415.0,66414.0,0.10822363]
[1722414769339,1.30129222,66415.0,66414.0,0.10822363]
[1722414769547,1.37669222,66415.0,66414.0,0.10822363]
[1722414770007,1.52738654,66415.0,66414.0,0.10822363]
[1722414770413,1.52738654,66415.0,66414.0,0.10622363]
[1722414770610,1.52683976,66415.0,66414.0,0.10622363]
[1722414771723,1.52683976,66415.0,66414.0,0.10222363]
[1722414771927,1.52683976,66415.0,66414.0,0.10322363]
[1722414772059,1.59231268,66415.0,66414.0,0.10322363]
[1722414772263,1.59228919,66415.0,66414.0,0.10322363]
[1722414772465,1.59228919,66415.0,66414.0,0.10422363]
[1722414772919,1.59228919,66415.0,66414.0,0.10322363]
[1722414773067,1.59228919,66415.0,66414.0,0.10422363]
[1722414773465,1.59228919,66415.0,66414.0,0.10222363]
[1722414773893,1.59239432,66415.0,66414.0,0.10222363]
[1722414775756,1.59439432,66415.0,66414.0,0.10222363]
[1722414776107,1.59239432,66415.0,66414.0,0.10222363]
[1722414776514,1.59439432,66415.0,66414.0,0.10222363]
[1722414777021,1.59239432,66415.0,66414.0,0.10222363]
[1722414777246,1.58523336,66415.0,66414.0,0.10222363]
[1722414777452,1.68117722,66415.0,66414.0,0.10222363]
[1722414780844,1.5304829,66415.0,66414.0,0.10222363]
[1722414781041,1.53132532,66415.0,66414.0,0.10222363]
[1722414781482,1.45592532,66415.0,66414.0,0.10222363]
[1722414784080,1.45588117,66415.0,66414.0,0.10222363]
[1722414785254,1.45621023,66415.0,66414.0,0.10222363]
[1722414785661,1.56516706,66415.0,66414.0,0.10222363]
[1722414787514,1.56530359,66415.0,66414.0,0.10222363]
[1722414790325,1.78748271,66415.0,66414.0,0.10222363]
[1722414790586,1.88755903,66415.0,66414.0,0.10222363]
[1722414790821,1.56809587,66415.0,66414.0,0.10222363]
[1722414791071,1.66405085,66415.0,66414.0,0.10222363]
[1722414791312,1.8863083,66415.0,66414.0,0.10222363]
[1722414794333,1.8857733,66415.0,66414.0,0.10222363]
[1722414796357,1.66351585,66415.0,66414.0,0.10222363]
[1722414797293,1.56809587,66415.0,66414.0,0.10222363]
[1722414797493,1.66254474,66415.0,66414.0,0.10222363]
[1722414798318,1.96368074,66415.0,66414.0,0.10222363]
[1722414799316,2.18599607,66415.0,66414.0,0.10222363]
[1722414801072,2.18628865,66415.0,66414.0,0.10222363]
[1722414804408,1.96504341,66415.0,66414.0,0.10222363]
[1722414805338,1.85608658,66415.0,66414.0,0.10222363]
[1722414805516,2.01306012,66415.0,66414.0,0.10222363]
[1722414807633,2.01213845,66415.0,66414.0,0.10222363]
[1722414808911,1.7898614,66415.0,66414.0,0.10222363]
[1722414809158,2.01214222,66415.0,66414.0,0.10222363]
[1722414809691,2.22863654,66415.0,66414.0,0.10222363]
[1722414809862,2.31163654,66415.0,66414.0,0.10222363]
[1722414810203,2.08935572,66415.0,66414.0,0.10222363]
[1722414811225,2.00660043,66415.0,66414.0,0.10222363]
[1722414811610,1.85590611,66415.0,66414.0,0.10222363]
[1722414814557,1.76077504,66415.0,66414.0,0.10222363]
[1722414814761,1.85578314,66415.0,66414.0,0.10222363]
[1722414816553,1.86578314,66415.0,66414.0,0.10222363]
[1722414817219,1.88578314,66415.0,66414.0,0.10222363]
[1722414817421,1.86578314,66415.0,66414.0,0.10222363]
[1722414817623,2.01647746,66415.0,66414.0,0.10222363]
[1722414817970,2.0164273,66415.0,66414.0,0.10222363]
[1722414821389,1.92146936,66415.0,66414.0,0.10222363]
[1722414821516,2.01664544,66415.0,66414.0,0.10222363]
[1722414822186,2.03964544,66415.0,66414.0,0.10222363]
[1722414822767,2.03964544,66415.0,66414.0,0.17862363]
[1722414822768,1.88744544,66415.0,66414.0,0.17862363]
[1722414822979,1.97384544,66415.0,66414.0,0.17862363]
[1722414824305,1.82315112,66415.0,66414.0,0.17862363]
[1722414824509,0.49920712,66415.0,66414.0,0.17862363]
[1722414824659,0.30403104,66415.0,66414.0,0.24422363]
[1722414824861,0.63563549,66415.0,66414.0,0.24422363]
[1722414825853,0.63363549,66415.0,66414.0,0.24422363]
[1722414826077,0.63563549,66415.0,66414.0,0.25622363]
[1722414826233,0.93677149,66415.0,66414.0,0.25622363]
[1722414827048,0.63563549,66415.0,66414.0,0.25622363]
[1722414828014,0.62963044,66415.0,66414.0,0.25622363]
[1722414828812,0.32849444,66415.0,66414.0,0.25622363]
[1722414829028,0.62963044,66415.0,66414.0,0.25622363]
[1722414829240,0.32849444,66415.0,66414.0,0.25622363]
[1722414830346,0.62963044,66415.0,66414.0,0.25622363]
[1722414830765,0.0272934,66415.0,66414.0,0.25622363]
[1722414831393,0.02727063,66415.0,66414.0,0.25622363]
[1722414832669,0.47897463,66415.0,66414.0,0.25622363]
[1722414832869,0.17783863,66415.0,66414.0,0.25622363]
[1722414833490,0.47897463,66415.0,66414.0,0.25622363]
[1722414833693,0.78011063,66415.0,66414.0,0.19062363]